bitfinex/quotes_ETHUSD_20250924
["timestamp","ask_amount","ask_price","bid_price","bid_amount"]
[1758680188808,1.95853155,4173.7,4173.5,2.39603349]
[1758680189067,1.26961708,4174.7,4174.0,2.39578342]
[1758680189362,2.99937777,4176.4,4173.8,2.39589822]
[1758680189363,0.50866844,4174.6,4174.5,2.39549646]
[1758680189641,0.50866844,4174.6,4174.5,2.92465142]
[1758680190608,0.50866844,4174.6,4174.5,2.62149646]
[1758680190844,0.50866844,4174.6,4171.9,3.39695895]
[1758680190845,0.792,4174.5,4172.5,2.39660563]
[1758680191150,0.792,4174.5,4173.9,2.39582627]
[1758680191151,0.1192,4174.1,4173.9,2.39582627]
[1758680191452,4.71322153,4174.0,4173.9,2.39582627]
[1758680192145,4.71322153,4174.0,4173.2,0.226]
[1758680192146,0.792,4173.8,4173.2,0.226]
[1758680192329,0.1192,4173.9,4173.2,0.226]
[1758680192330,4.71322153,4173.7,4173.6,2.39601303]
[1758680192534,4.71322153,4173.7,4173.6,2.90121303]
[1758680192709,4.71322153,4173.7,4173.6,0.226]
[1758680192909,4.71322153,4173.7,4173.6,2.62201303]
[1758680193110,4.71322153,4173.7,4173.6,0.5052]
[1758680193410,4.71322153,4173.7,4173.1,0.02]
[1758680193411,0.792,4173.5,4173.1,0.02]
[1758680193609,4.71322153,4173.4,4173.3,2.39618527]
[1758680195054,4.71322153,4173.4,4173.3,2.62218527]
[1758680195211,4.71322153,4173.4,4173.3,2.39618527]
[1758680195407,0.1192,4173.3,4173.1,0.02]
[1758680195628,4.71222153,4173.2,4173.1,2.41630011]
[1758680196458,4.71222153,4173.2,4173.1,0.02]
[1758680196656,4.71222153,4173.2,4173.1,2.41630011]
[1758680197247,4.71122153,4173.2,4173.1,2.41630011]
[1758680197445,0.64122153,4173.2,4173.1,2.42030011]
[1758680197651,0.64122153,4173.2,4173.1,3.42976911]
[1758680197824,4.71222153,4173.2,4173.1,3.42976911]
[1758680198146,0.64122153,4173.2,4173.1,3.15056911]
[1758680198362,4.71122153,4173.2,4173.1,0.024]
[1758680198719,4.71122153,4173.2,4173.1,2.42030011]
[1758680199152,4.71122153,4173.2,4173.1,0.024]
[1758680199348,5.50322153,4173.2,4173.1,0.024]
[1758680200921,5.72474293,4173.2,4173.1,0.024]
[1758680201313,8.72474293,4173.2,4173.1,0.024]
[1758680203352,8.72274293,4173.2,4173.1,0.024]
[1758680205353,4.93083033,4173.2,4173.1,2.42030011]
[1758680205530,4.93083033,4173.2,4173.1,4.87837151]
[1758680205531,0.86283033,4173.2,4173.1,4.87837151]
[1758680205732,0.35416189,4173.2,4173.1,2.94670011]
[1758680206056,0.3408088,4173.2,4173.1,17.44670011]
[1758680206255,0.1192,4173.2,4173.1,17.44670011]
[1758680206472,0.34087592,4173.2,4173.1,17.16750011]
[1758680206669,0.34087592,4173.2,4173.1,17.44670011]
[1758680207222,0.34087592,4173.2,4173.1,19.43101151]
[1758680207558,3.0,4174.1,4173.1,19.43101151]
[1758680207559,3.60069168,4173.9,4173.8,2.39589822]
[1758680207759,0.35473697,4173.9,4173.8,2.92239822]
[1758680208461,0.2445,4175.4,4173.8,2.92239822]
[1758680208462,0.1192,4174.1,4174.0,2.39578342]
[1758680208682,0.47398857,4174.1,4174.0,2.92228342]
[1758680208889,0.47398857,4174.1,4174.0,3.45410158]
[1758680209058,0.34094252,4174.1,4174.0,17.95410158]
[1758680210183,0.1192,4174.1,4174.0,17.95410158]
[1758680210953,0.13303607,4174.5,4174.1,2.39572602]
[1758680211151,0.13303607,4174.5,4174.0,15.55831816]
[1758680211152,0.34093689,4174.5,4174.3,2.39557239]
[1758680211356,0.1192,4174.5,4174.4,2.71411229]
[1758680211670,0.1192,4174.5,4174.4,2.93735676]
[1758680211982,0.1192,4174.5,4174.4,17.74061229]
[1758680212184,0.1192,4174.5,4174.4,17.71665676]
[1758680212489,0.25224216,4174.9,4174.8,2.39532432]
[1758680212688,0.1192,4174.9,4174.8,2.39532432]
[1758680212848,0.25224216,4174.9,4174.8,2.39532432]
[1758680213055,0.1192,4174.9,4174.8,16.89532432]
[1758680213365,0.1192,4174.9,4174.8,17.14252432]
[1758680213978,0.1192,4174.9,4174.8,16.89532432]
[1758680215276,0.1192,4174.9,4174.8,19.25551673]
[1758680215584,0.1192,4174.9,4174.8,19.50271673]
[1758680215790,0.1192,4174.9,4174.8,16.86019241]
[1758680215975,0.1192,4174.9,4174.8,14.5]
[1758680215976,0.822,4174.9,4174.8,14.5]
[1758680216181,0.95490897,4174.9,4174.8,14.5]
[1758680217654,0.25206772,4174.9,4174.8,14.5]
[1758680217854,0.1192,4174.9,4174.8,14.5]
[1758680218065,0.1202,4174.9,4174.8,14.5]
[1758680220196,0.823,4174.9,4174.8,14.5]
[1758680220397,0.95586772,4174.9,4174.8,14.5]
[1758680225887,2.24965449,4174.9,4174.8,14.5]
[1758680226196,0.792,4174.8,4174.1,2.39567712]
[1758680226363,0.792,4174.6,4174.1,2.39567712]
[1758680226678,1.4948,4174.6,4174.2,14.5]
[1758680226879,1.4948,4174.6,4174.2,16.89565049]
[1758680227401,1.4948,4174.6,4174.2,14.5]
[1758680227602,1.4948,4174.6,4174.2,16.89562971]
[1758680227769,1.4948,4174.6,4174.3,2.39559925]
[1758680228278,0.1192,4174.3,4174.2,16.89565939]
[1758680228475,0.1192,4174.3,4174.2,14.5]
[1758680228682,0.1192,4174.3,4172.1,2.41683658]
[1758680228683,3.792,4174.2,4173.1,0.024]
[1758680229002,2.39587922,4173.9,4173.1,0.024]
[1758680229201,0.792,4174.0,4173.1,0.024]
[1758680229202,0.792,4173.6,4173.1,0.024]
[1758680229498,3.792,4173.4,4173.1,0.024]
[1758680229706,2.42716782,4173.5,4173.1,0.024]
[1758680229707,3.792,4173.2,4173.1,0.024]
[1758680229906,4.14616782,4173.2,4173.1,0.024]
[1758680230268,4.84896782,4173.2,4173.1,0.024]
[1758680230469,6.18657333,4173.2,4173.1,0.024]
[1758680233314,4.84896782,4173.2,4173.1,0.024]
[1758680237212,4.62763076,4173.2,4173.1,0.024]
[1758680241161,4.62717839,4173.2,4173.1,0.024]
[1758680242962,4.63327839,4173.2,4173.1,0.024]
[1758680244450,4.63327839,4173.2,4173.1,2.65070011]
[1758680244451,3.0,4173.2,4173.1,2.65070011]
[1758680244624,4.058,4173.3,4173.2,2.39624269]
[1758680244820,3.792,4173.8,4173.4,2.39607723]
[1758680245026,15.92262747,4175.0,4173.1,0.024]
[1758680245027,2.074,4174.2,4173.6,2.39601303]
[1758680245262,4.051,4174.1,4173.7,2.92961512]
[1758680245463,0.001,4174.9,4173.8,0.53365898]
[1758680245662,4.052,4174.8,4174.3,2.39556107]
[1758680245865,0.1192,4174.3,4174.1,0.2793]
[1758680246065,4.052,4174.4,4174.3,2.39561124]
[1758680246269,4.052,4174.4,4174.3,2.67491124]
[1758680246474,4.052,4174.4,4174.3,17.40531124]
[1758680246679,4.052,4174.4,4174.3,14.7304]
[1758680247155,4.052,4174.4,4174.3,17.12601124]
[1758680247737,4.052,4174.4,4174.3,17.40531124]
[1758680248673,4.052,4174.4,4174.3,14.5]
[1758680248973,4.18445812,4174.4,4174.3,14.5]
[1758680249379,4.052,4174.4,4174.3,14.5]
[1758680250740,5.45083933,4174.4,4174.3,14.5]
[1758680251044,5.45083933,4174.4,4173.1,0.2544]
[1758680251045,6.14233933,4174.4,4173.3,0.2304]
[1758680251245,6.14233933,4174.4,4173.1,0.024]
[1758680251246,4.14528949,4174.3,4173.1,0.024]
[1758680251475,0.1192,4173.2,4173.1,0.024]
[1758680251647,0.1192,4173.2,4173.1,14.524]
[1758680252278,0.8107,4173.2,4173.1,0.024]
[1758680252438,5.4553221,4173.2,4173.1,0.024]
[1758680252638,2.4553221,4173.2,4173.1,0.024]
[1758680254046,4.85156479,4173.2,4173.1,0.024]
[1758680254244,5.36037375,4173.2,4173.1,0.024]
[1758680256283,8.36037375,4173.2,4173.1,0.024]
[1758680256581,8.99617186,4173.2,4173.1,0.024]
[1758680257089,13.04617186,4173.2,4173.1,0.024]
[1758680257465,13.04617186,4173.2,4172.6,0.004]
[1758680257466,17.54005227,4172.7,4172.6,0.004]
[1758680257644,27.80848017,4172.7,4172.6,0.004]
[1758680257844,28.21766567,4172.7,4172.6,0.004]
[1758680258879,28.21766567,4172.7,4172.1,0.02]
[1758680258880,5.81858725,4172.6,4172.1,0.02]
[1758680259082,3.18881702,4172.2,4172.1,0.02]
[1758680259283,11.95461561,4172.2,4172.1,0.02]
[1758680259483,13.79104251,4172.2,4172.1,0.02]
[1758680259946,13.15492457,4172.2,4172.1,0.02]
[1758680260149,13.27421876,4172.2,4172.1,0.02]
[1758680260368,13.90944997,4172.2,4172.1,0.02]
[1758680260675,13.27421876,4172.2,4172.1,0.02]
[1758680260885,13.90944997,4172.2,4172.1,0.02]
[1758680261155,13.27421876,4172.2,4172.1,0.02]
[1758680261610,2.42730444,4172.2,4172.1,0.2629]
[1758680261815,0.13247656,4172.2,4172.1,2.93907447]
[1758680261963,2.074,4172.7,4172.3,2.39674007]
[1758680262162,4.18447656,4172.6,4172.4,0.5222]
[1758680262390,7.052,4172.6,4172.5,0.5222]
[1758680262566,3.0,4172.6,4172.5,0.2429]
[1758680262776,3.0,4172.6,4172.5,14.5]
[1758680262777,7.1843216,4172.6,4172.5,14.5]
[1758680263101,0.1323216,4172.6,4172.5,17.41884469]
[1758680263301,2.612,4172.6,4172.5,19.40040384]
[1758680263474,0.35194413,4173.7,4173.0,2.39635753]
[1758680263475,4.054,4173.1,4173.0,2.39635753]
[1758680263675,4.054,4173.1,4173.0,2.91855753]
[1758680264002,4.054,4173.1,4173.0,0.2429]
[1758680264163,4.054,4173.1,4173.0,2.91855753]
[1758680264368,2.074,4173.7,4173.0,2.91855753]
[1758680264369,2.39668915,4174.2,4173.0,2.91855753]
[1758680264569,3.0,4174.0,4173.1,2.63918439]
[1758680264891,0.792,4173.8,4173.2,0.2429]
[1758680265095,3.0,4173.6,4173.2,0.2429]
[1758680265297,0.35198779,4173.5,4173.3,0.2429]
[1758680265613,4.056,4173.4,4173.2,2.39624269]
[1758680265913,3.0,4173.3,4173.2,2.67554269]
[1758680266085,0.2768162,4174.1,4173.3,2.91838134]
[1758680266282,3.0,4173.9,4173.4,2.63902411]
[1758680266607,4.055,4173.8,4173.5,0.5461607]
[1758680266812,2.074,4174.3,4173.6,0.5222]
[1758680267011,4.056,4174.1,4173.8,2.39589822]
[1758680267182,4.056,4174.1,4173.9,0.5461584]
[1758680267398,4.056,4174.1,4174.0,2.39578342]
[1758680267722,4.056,4174.1,4173.7,0.2429]
[1758680267723,0.1192,4173.9,4173.7,0.2429]
[1758680267927,0.1192,4173.9,4173.8,17.13879822]
[1758680268220,0.1192,4173.9,4173.8,14.7429]
[1758680268654,0.1192,4173.9,4173.8,14.5]
[1758680269521,4.45720264,4173.9,4173.8,14.5]
[1758680269688,3.13230948,4173.9,4173.8,14.5]
[1758680269887,3.13230948,4173.9,4173.8,14.7429]
[1758680270318,3.13230948,4173.9,4173.8,14.5]
[1758680271010,3.13230948,4173.9,4173.0,2.3963542]
[1758680271011,0.792,4173.8,4172.5,0.2793]
[1758680271215,4.18930948,4173.7,4173.4,2.39612189]
[1758680271399,4.059,4173.6,4173.5,14.7429]
[1758680273026,4.059,4173.6,4173.5,14.5]
[1758680273745,4.851,4173.6,4173.5,14.5]
[1758680274050,4.851,4173.6,4173.1,0.2429]
[1758680274217,4.851,4173.6,4173.0,2.39631582]
[1758680274425,4.851,4173.6,4173.1,0.2429]
[1758680274608,4.851,4173.6,4173.2,0.2429]
[1758680275136,5.5596,4173.6,4172.8,2.39646439]
[1758680275328,4.851,4173.6,4172.8,2.39646439]
[1758680275848,0.92428145,4173.5,4172.7,0.2429]
[1758680276033,0.792,4173.3,4172.6,0.004]
[1758680276237,0.84087902,4173.4,4172.6,0.004]
[1758680276238,3.792,4173.1,4172.6,0.004]
[1758680276549,0.132291,4173.0,4172.6,0.004]
[1758680276847,0.50821474,4173.0,4172.6,0.004]
[1758680279348,0.132291,4173.0,4172.6,0.004]
[1758680280224,0.35205154,4173.0,4172.6,0.004]
[1758680281342,1.41178208,4173.0,4172.6,0.004]
[1758680281663,0.792,4172.7,4172.6,0.004]
[1758680281818,7.59558136,4172.7,4172.6,0.004]
[1758680282018,5.90765154,4172.7,4172.6,0.004]
[1758680282573,11.68015083,4172.7,4172.6,0.004]
[1758680282728,13.90964167,4172.7,4172.6,0.004]
[1758680285061,13.90971574,4172.7,4172.6,0.004]
[1758680285633,13.90970516,4172.7,4172.6,0.004]
[1758680286462,15.98270516,4172.7,4172.6,0.004]
[1758680287573,15.9827076,4172.7,4172.6,0.004]
[1758680288986,2.39658725,4172.6,4172.1,0.02]
[1758680289147,6.18881702,4172.2,4172.1,0.02]
[1758680289346,11.10220667,4172.2,4172.1,0.02]
[1758680289545,11.81080667,4172.2,4172.1,0.02]
[1758680290278,11.81080667,4172.2,4161.7,45.0]
[1758680290279,2.3972857,4171.4,4170.4,0.2429]
[1758680290453,7.27093257,4171.3,4170.4,0.2429]
[1758680290783,1.14493257,4171.2,4170.4,0.2429]
[1758680291147,1.14493257,4171.2,4170.4,2.64074923]
[1758680291346,1.14493257,4171.2,4170.4,0.2429]
[1758680291762,1.14493257,4171.2,4170.6,0.2303]
[1758680291973,1.14493257,4171.2,4170.6,2.62803642]
[1758680292151,1.14493257,4171.2,4170.6,0.2303]
[1758680293362,0.92435693,4171.2,4170.6,0.2303]
[1758680294647,1.66700074,4171.2,4170.6,0.2303]
[1758680294849,1.66700074,4171.2,4170.4,0.2262]
[1758680295269,1.61385693,4171.2,4170.4,0.2262]
[1758680295592,1.61385693,4171.2,4170.5,2.3977938]
[1758680295753,1.61385693,4171.2,4170.8,0.2262]
[1758680295754,0.13235693,4171.2,4170.8,0.2262]
[1758680295959,6.50208121,4171.3,4170.1,0.02]
[1758680295960,0.37608121,4171.3,4171.1,0.5255]
[1758680296161,0.37608121,4171.3,4171.2,2.92686554]
[1758680296364,4.42608121,4171.3,4171.2,2.62359163]
[1758680296692,4.42608121,4171.3,4171.2,2.90289163]
[1758680296990,4.05,4171.3,4171.2,3.40700667]
[1758680297217,0.6895,4172.6,4171.2,1.00961504]
[1758680297373,6.25824581,4172.5,4171.7,2.39708614]
[1758680297718,0.1192,4171.7,4171.6,2.67645312]
[1758680297858,2.39659232,4172.6,4171.6,2.67645312]
[1758680297859,0.35265625,4172.2,4172.1,2.39687447]
[1758680298057,2.075,4172.6,4172.1,0.2793]
[1758680298257,4.40365625,4172.5,4172.2,0.52946817]
[1758680298591,4.052,4172.4,4172.3,0.5055]
[1758680299096,4.052,4172.4,4172.3,2.90225958]
[1758680299389,0.2351,4173.4,4172.3,0.5055]
[1758680299591,3.0,4173.2,4172.4,0.2262]
[1758680299893,0.792,4173.0,4172.1,0.2262]
[1758680300191,0.1192,4172.3,4171.9,2.3969475]
[1758680300396,5.09453644,4172.9,4171.4,0.2793]
[1758680300397,0.1192,4172.0,4171.4,0.2793]
[1758680300702,4.052,4171.9,4171.6,2.62335765]
[1758680301008,4.052,4171.9,4171.7,0.2262]
[1758680301191,4.052,4171.9,4171.1,0.02]
[1758680301192,0.1192,4171.7,4171.1,0.02]
[1758680301387,0.4544,4172.2,4171.2,2.39733481]
[1758680301388,4.052,4171.6,4171.2,2.39733481]
[1758680301586,4.052,4171.6,4171.3,2.62351769]
[1758680301896,4.052,4171.6,4171.1,0.02]
[1758680301897,0.1192,4171.2,4171.1,0.02]
[1758680303312,0.1192,4171.2,4171.1,2.41744911]
[1758680303518,0.1192,4171.2,4171.1,2.4414236]
[1758680303813,0.1192,4171.2,4171.1,0.02]
[1758680304217,0.1192,4171.2,4171.1,2.41744911]
[1758680304584,0.1192,4171.2,4171.1,2.6676236]
[1758680304824,0.1192,4171.2,4171.1,2.64364911]
[1758680305030,0.25179021,4171.2,4171.1,2.64364911]
[1758680305244,0.1192,4171.2,4171.1,3.42946732]
[1758680305690,0.1192,4171.2,4171.1,3.45344181]
[1758680306483,0.37600498,4172.2,4172.1,2.39687447]
[1758680306690,4.78390678,4172.2,4171.8,2.62321769]
[1758680306906,0.3539018,4172.1,4171.9,0.2262]
[1758680307112,0.1192,4171.9,4171.8,2.39704683]
[1758680307325,0.25191317,4171.9,4171.8,2.39704683]
[1758680307486,0.1192,4171.9,4171.8,2.39704683]
[1758680307683,0.25191317,4171.9,4171.6,2.39711555]
[1758680307887,0.1192,4171.9,4171.7,2.39709066]
[1758680308115,0.25191317,4171.9,4171.5,2.62341474]
[1758680308320,0.1192,4171.9,4171.5,2.62341474]
[1758680308527,0.25191317,4171.9,4171.2,2.39739163]
[1758680308834,0.22118863,4172.1,4171.2,2.39739163]
[1758680308835,0.13271317,4171.8,4171.4,2.39723614]
[1758680309130,0.13271317,4171.9,4171.4,2.39723415]
[1758680309333,0.13271317,4171.8,4171.5,2.39720372]
[1758680309486,0.13271317,4171.8,4171.1,0.02]
[1758680309487,0.3539018,4171.7,4171.1,0.02]
[1758680309695,0.3539018,4171.6,4171.1,0.02]
[1758680309890,0.13271317,4171.5,4171.1,0.02]
[1758680310191,0.3539018,4171.4,4171.1,0.02]
[1758680310401,4.4129018,4171.3,4171.1,0.02]
[1758680310586,0.3539018,4171.2,4171.1,0.02]
[1758680311133,1.0434018,4171.2,4171.1,0.02]
[1758680311484,1.79336571,4171.2,4171.1,0.02]
[1758680311689,2.30346968,4171.2,4171.1,0.02]
[1758680312202,1.79336571,4171.2,4171.1,0.02]
[1758680312402,2.30345502,4171.2,4171.1,0.02]
[1758680312923,3.09545502,4171.2,4171.1,0.02]
[1758680313404,2.58536571,4171.2,4171.1,0.02]
[1758680313789,3.09541373,4171.2,4171.1,0.02]
[1758680314325,1.79336571,4171.2,4171.1,0.02]
[1758680314532,5.1004018,4171.2,4171.1,0.02]
[1758680314840,7.1754018,4171.2,4171.1,0.02]
[1758680314993,2.72151454,4171.2,4171.1,0.02]
[1758680315298,8.34348168,4171.2,4171.1,0.02]
[1758680315703,2.21148168,4171.2,4171.1,0.02]
[1758680315891,5.80012985,4171.2,4171.1,0.02]
[1758680316090,0.72998168,4171.2,4171.1,0.02]
[1758680316411,6.86198168,4171.2,4171.1,0.02]
[1758680317865,0.72998168,4171.2,4171.1,0.2462]
[1758680318160,4.78598168,4171.2,4171.1,0.2462]
[1758680318516,4.78698168,4171.2,4171.1,0.02]
[1758680319022,5.47648168,4171.2,4171.1,0.02]
[1758680319239,6.41736175,4171.2,4171.1,0.02]
[1758680319417,7.61684924,4171.2,4171.1,0.02]
[1758680319619,10.01424087,4171.2,4171.1,0.02]
[1758680320333,7.61684924,4171.2,4171.1,0.02]
[1758680320539,10.01424087,4171.2,4171.1,0.02]
[1758680320742,7.61684924,4171.2,4171.1,0.02]
[1758680320962,10.01424087,4171.2,4171.1,0.02]
[1758680321128,13.01424087,4171.2,4171.1,0.02]
[1758680321314,10.61684924,4171.2,4171.1,0.02]
[1758680322158,10.61693085,4171.2,4171.1,0.02]
[1758680322365,9.92743085,4171.2,4171.1,0.02]
[1758680323166,9.13343085,4171.2,4171.1,0.02]
[1758680323453,0.84926329,4171.2,4171.1,0.5267]
[1758680323820,0.84926329,4171.2,4171.1,0.02]
[1758680324216,0.47318341,4171.2,4171.1,0.02]
[1758680324619,0.47318341,4171.2,4171.1,0.2474]
[1758680324920,4.1772,4171.2,4171.1,15.0267]
[1758680325150,0.1192,4171.2,4171.1,19.16897875]
[1758680325355,4.058,4171.6,4171.4,2.39725999]
[1758680325548,0.2520088,4171.5,4171.4,2.39725999]
[1758680325738,0.1192,4171.5,4171.4,2.39725999]
[1758680326241,0.1192,4171.5,4171.4,2.90395999]
[1758680326439,0.8860064,4172.2,4171.4,2.90395999]
[1758680326440,4.058,4171.8,4171.4,2.20654563]
[1758680326757,0.13281083,4171.7,4171.5,0.5067]
[1758680326943,0.13281083,4171.7,4171.6,2.67646176]
[1758680327158,0.13281083,4171.7,4171.6,2.90386176]
[1758680327521,0.13281083,4171.7,4171.1,14.52]
[1758680327725,0.13281083,4171.6,4171.1,16.91742859]
[1758680327925,0.13281083,4171.6,4171.2,2.62478709]
[1758680328465,0.13281083,4171.6,4171.3,2.39733172]
[1758680328825,0.13281083,4171.6,4171.4,2.39726518]
[1758680329153,0.35414571,4171.7,4171.2,0.5067]
[1758680329455,0.13281083,4171.6,4171.5,2.39720444]
[1758680329622,0.13281083,4171.6,4171.5,0.2274]
[1758680329823,0.13281083,4171.6,4171.1,16.50173286]
[1758680330023,0.13281083,4171.5,4171.3,2.3973248]
[1758680330260,0.13281083,4171.6,4171.3,2.3973248]
[1758680330446,0.13281083,4171.5,4171.3,2.3973248]
[1758680330641,0.13281083,4171.6,4171.3,2.3973248]
[1758680330854,0.13281083,4171.5,4171.2,2.3973789]
[1758680331057,0.13281083,4171.4,4171.2,2.3973789]
[1758680331237,0.13281083,4171.5,4171.2,2.3973789]
[1758680331556,0.13281083,4171.4,4171.3,2.62473416]
[1758680331758,0.13281083,4171.5,4171.4,2.39727669]
[1758680331934,0.35414571,4171.6,4171.5,2.39721922]
[1758680332140,0.13281083,4171.6,4171.5,2.39721922]
[1758680332340,0.13281083,4171.6,4171.5,0.2274]
[1758680332666,0.13281083,4171.6,4171.5,2.62461922]
[1758680335073,0.13281083,4171.7,4171.6,2.39716176]
[1758680335482,0.13281083,4171.7,4171.6,2.62456176]
[1758680335766,0.13281083,4171.7,4171.6,0.2274]
[1758680336065,0.13281083,4171.7,4171.6,2.62456176]
[1758680336779,0.34053488,4171.8,4171.6,3.18104031]
[1758680336780,0.13281083,4171.8,4171.6,3.18104031]
[1758680337074,0.1202,4172.1,4172.0,2.39693192]
[1758680337364,0.1202,4172.1,4172.0,16.89693192]
[1758680337561,0.1202,4172.1,4172.0,18.34615784]
[1758680338340,0.1202,4172.1,4172.0,18.62545784]
[1758680338861,0.1202,4172.1,4172.0,18.34615784]
[1758680340073,0.1202,4172.1,4172.0,18.62545784]
[1758680340074,0.001,4172.1,4172.0,18.62545784]
[1758680340372,0.001,4172.1,4172.0,18.34615784]
[1758680340572,0.001,4172.1,4172.0,14.5]
[1758680340773,0.3572,4172.1,4172.0,14.5]
[1758680340972,0.1202,4172.1,4172.0,14.5]
[1758680341748,0.1202,4172.1,4172.0,16.89693192]
[1758680342471,0.1202,4172.1,4172.0,17.12433192]
[1758680342674,0.1202,4172.1,4172.0,19.78849969]
[1758680342841,0.001,4172.1,4172.0,19.78849969]
[1758680343047,0.001,4172.1,4172.0,23.83549969]
[1758680343249,0.001,4172.1,4172.0,23.95469969]
[1758680347971,0.001,4172.1,4172.0,30.26969969]
[1758680348146,0.001,4172.1,4172.0,30.15049969]
[1758680348553,0.001,4172.1,4172.0,30.26969969]
[1758680348985,0.001,4172.1,4172.0,24.86249969]
[1758680349186,0.001,4172.1,4172.0,28.91449969]
[1758680349391,0.001,4172.1,4172.0,19.28179969]
[1758680349558,0.001,4172.1,4172.0,23.33579969]
[1758680351401,0.001,4172.1,4172.0,23.84249969]
[1758680352405,0.001,4172.1,4172.0,30.15749969]
[1758680355120,1e-08,4173.9,4172.3,0.792]
[1758680355255,1e-08,4173.9,4172.6,2.523]
[1758680355459,1e-08,4173.9,4173.0,2.39635753]
[1758680355708,1e-08,4173.9,4173.8,14.5]
[1758680355858,1e-08,4173.9,4173.8,16.89589822]
[1758680356409,0.67280001,4173.9,4173.8,16.89589822]
[1758680356708,1e-08,4173.9,4173.8,17.24500572]
[1758680357012,0.43220001,4173.9,4173.8,17.24500572]
[1758680357303,0.43220001,4173.9,4173.8,14.5]
[1758680357459,0.67280001,4173.9,4173.8,18.562]
[1758680357653,0.67280001,4173.9,4173.8,14.5]
[1758680358060,0.67280001,4173.9,4173.8,20.95989822]
[1758680358261,0.43220001,4173.9,4173.8,20.95989822]
[1758680358976,0.43220001,4173.9,4173.8,21.07909822]
[1758680359178,1e-08,4173.9,4173.8,23.42660502]
[1758680360360,1e-08,4173.9,4173.8,23.30740502]
[1758680360554,1e-08,4173.9,4173.8,23.58670502]
[1758680360759,1e-08,4173.9,4173.8,23.82100502]
[1758680361609,1e-08,4173.9,4173.8,26.82100502]
[1758680361903,1e-08,4173.9,4173.8,19.24340502]
[1758680362058,1e-08,4173.9,4173.8,23.31140502]
[1758680362703,1e-08,4173.9,4173.8,19.24340502]
[1758680362906,0.67280001,4173.9,4173.8,16.89589822]
[1758680363208,1e-08,4173.9,4173.8,20.98589822]
[1758680366611,1e-08,4173.9,4173.8,21.49949822]
[1758680367413,0.35932388,4175.1,4175.0,2.39520958]
[1758680367582,0.59992388,4175.1,4175.0,6.48520958]
[1758680367998,0.59992388,4175.1,4175.0,20.98420958]
[1758680370030,0.001,4175.4,4175.0,20.98420958]
[1758680370031,0.2209757,4175.2,4175.1,2.39515221]
[1758680370183,0.4322,4175.2,4175.1,4.091]
[1758680370384,0.4322,4175.2,4175.1,6.60531235]
[1758680370385,0.6728,4175.2,4175.1,6.60531235]
[1758680370823,0.6728,4175.2,4175.1,21.10531235]
[1758680371385,0.6728,4175.2,4175.1,17.01431235]
[1758680371586,0.6728,4175.2,4175.1,21.10531235]
[1758680371787,0.001,4175.4,4175.1,18.7102]
[1758680372034,0.6728,4175.3,4175.2,2.39509484]
[1758680373208,0.22106633,4175.3,4175.2,6.48609484]
[1758680373517,0.65326633,4175.3,4175.2,6.48609484]
[1758680373684,0.89386633,4175.3,4175.2,6.48609484]
[1758680373889,0.89386633,4175.3,4175.2,2.39509484]
[1758680374130,0.89386633,4175.3,4175.2,6.48509484]
[1758680375492,0.89386633,4175.3,4175.2,20.98509484]
[1758680378804,0.22106633,4175.3,4175.2,23.32312127]
[1758680379008,0.001,4175.4,4175.3,2.39503748]
[1758680379220,0.22221816,4175.4,4175.3,2.39503748]
[1758680379660,0.001,4175.4,4175.3,2.39503748]
[1758680379812,0.89500725,4175.4,4175.3,0.02395037]
[1758680380145,1.01420725,4175.4,4175.3,6.48203748]
[1758680380351,1.14700548,4175.4,4175.3,4.087]
[1758680380553,1.14700548,4175.4,4175.3,6.48203748]
[1758680381523,1.14700548,4175.4,4175.3,4.087]
[1758680381723,1.14700548,4175.4,4175.2,14.5]
[1758680382026,1.04570548,4175.3,4175.2,14.5]
[1758680382227,1.04570548,4175.3,4174.4,0.1192]
[1758680382228,1.04570548,4175.3,4173.4,2.073]
[1758680382229,0.792,4175.2,4173.4,2.073]
[1758680382426,0.792,4175.2,4174.1,2.39567638]
[1758680382427,0.792,4174.8,4174.1,2.39567638]
[1758680382626,0.792,4174.6,4174.1,1.302]
[1758680382851,1.04570548,4174.5,4174.2,14.5]
[1758680383014,1.04570548,4174.4,4174.2,14.5]
[1758680383215,1.04570548,4174.3,4174.2,14.5]
[1758680384055,1.04570548,4174.3,4174.2,16.89566863]
[1758680384555,1.04570548,4174.3,4174.2,14.5]
[1758680385153,1.04570548,4174.3,4174.2,16.89566863]
[1758680385523,1.04570548,4174.3,4174.2,14.5]
[1758680387027,1.04570548,4174.3,4173.9,4.09]
[1758680387251,1.04570548,4174.3,4173.4,2.62820729]
[1758680387252,1.04570548,4174.2,4173.8,4.09]
[1758680387463,1.04570548,4174.1,4173.9,14.5]
[1758680387668,1.04570548,4174.0,4173.9,14.5]
[1758680387869,1.83770548,4174.0,4173.1,0.02]
[1758680388080,0.35400548,4173.9,4173.2,2.42020511]
[1758680388258,0.35400548,4173.8,4173.3,1.115]
[1758680388455,0.35400548,4173.7,4173.5,2.39607]
[1758680388637,0.81000548,4173.6,4173.5,2.39607]
[1758680388832,0.22120725,4173.6,4173.5,2.39607]
[1758680389237,0.22120725,4173.9,4173.8,2.39589822]
[1758680389451,0.35407654,4174.1,4173.8,6.48589822]
[1758680389652,0.22146125,4174.0,4173.9,14.5239584]
[1758680389845,0.22146125,4174.0,4173.9,16.89584082]
[1758680390246,0.35433054,4174.2,4174.1,2.39572602]
[1758680390448,0.22146125,4174.2,4174.1,2.41968328]
[1758680390975,0.22146125,4174.2,4174.1,17.78627843]
[1758680391472,0.13286466,4174.6,4174.5,2.39549646]
[1758680391669,0.35428706,4174.6,4174.5,2.39549646]
[1758680393263,0.37575841,4174.7,4174.6,2.39543908]
[1758680393566,0.37575841,4174.7,4174.6,2.41939347]
[1758680394680,0.37575841,4174.7,4174.6,16.91939347]
[1758680394880,0.37575841,4174.7,4174.6,16.89543908]